fUSD/lending_fUSD_20260408
["ID","MTS","AMOUNT","RATE_DAILY","PERIOD"]
[420081929,1775659843996,-160.0,0.00014845,2]
[420081930,1775659844007,-416.961697,0.00014895,7]
[420081931,1775659844021,-160.0,0.00014921,2]
[420081932,1775659844042,-289.115851,0.00014921,2]
[420081933,1775659844063,-418.231703,0.00014921,2]
[420081934,1775659844074,-1068.5,0.00014928,2]
[420081935,1775659844084,-188.822137,0.00014949,7]
[420081936,1775659844095,-300.0,0.00015,2]
[420081937,1775659844105,-5000.0,0.00015,2]
[420081938,1775659844116,-262.9588,0.00015,2]
[420081939,1775659844129,-160.0,0.00015,2]
[420081940,1775659844139,-439.0,0.00015057,3]
[420081941,1775659844150,-840.38,0.00015068,2]
[420081942,1775659844160,-3449.0,0.000151,2]
[420081943,1775659844171,-294.766961,0.0001512,2]
[420081944,1775659844182,-9136.75136784,0.00015136,2]
[420081945,1775659844194,-9577.4290793,0.00015136,2]
[420081946,1775659844205,-1068.5,0.00015162,2]
[420081947,1775659844215,-578.20924308,0.00015199,2]
[420081948,1775659844226,-181.08010149,0.00015199,2]
[420081949,1775659844237,-8260.13072239,0.00015199,2]
[420081950,1775659844247,-200.0,0.00015199,2]
[420081951,1775659844257,-500.0,0.00015199,2]
[420081952,1775659844267,-623.58710448,0.00015199,2]
[420081953,1775659844278,-1235.18214925,0.00015199,2]
[420081954,1775659844288,-743.50770149,0.00015199,2]
[420081955,1775659844298,-174.61919141,0.00015199,2]
[420081956,1775659844308,-151.0,0.00015199,2]
[420081957,1775659844318,-170.0,0.00015199,2]
[420081958,1775659844327,-170.0,0.00015199,2]
[420081959,1775659844337,-170.0,0.00015199,2]
[420081960,1775659844347,-170.0,0.00015199,2]
[420081961,1775659844357,-170.0,0.00015199,2]
[420081962,1775659844367,-170.0,0.00015199,2]
[420081963,1775659844377,-170.0,0.00015199,2]
[420081964,1775659844387,-170.0,0.00015199,2]
[420081965,1775659844397,-170.0,0.00015199,2]
[420081966,1775659844406,-170.0,0.00015199,2]
[420081967,1775659844416,-170.0,0.00015199,2]
[420081968,1775659844424,-170.0,0.00015199,2]
[420081969,1775659844434,-170.0,0.00015199,2]
[420081970,1775659844443,-170.0,0.00015199,2]
[420081971,1775659844454,-170.0,0.00015199,2]
[420081972,1775659844465,-888.71981631,0.00015224,2]
[420081973,1775659844475,-150.0,0.00015226,2]
[420081974,1775659844485,-150.0,0.00015226,2]
[420081975,1775659844495,-150.0,0.00015226,2]
[420081976,1775659844506,-150.0,0.00015226,2]
[420081977,1775659844516,-150.0,0.00015226,2]
[420081978,1775659844527,-150.0,0.00015226,2]
[420081979,1775659844537,-150.0,0.00015226,2]
[420081980,1775659844548,-150.0,0.00015226,2]
[420081981,1775659844558,-150.0,0.00015226,2]
[420081982,1775659844570,-150.0,0.00015226,2]
[420081983,1775659844580,-150.0,0.00015226,2]
[420081984,1775659844591,-150.0,0.00015226,2]
[420081985,1775659844601,-150.0,0.00015226,2]
[420081986,1775659844612,-150.0,0.00015226,2]
[420081987,1775659844623,-150.0,0.00015226,2]
[420081988,1775659844633,-150.0,0.00015226,2]
[420081989,1775659844643,-150.0,0.00015226,2]
[420081990,1775659844654,-150.0,0.00015226,2]
[420081991,1775659844665,-150.0,0.00015226,2]
[420081992,1775659844675,-150.0,0.00015226,2]
[420081993,1775659844685,-296.36296758,0.00015226,2]
[420081994,1775659844696,-500.0,0.00015226,2]
[420081995,1775659844707,-500.0,0.00015226,2]
[420081996,1775659844718,-500.0,0.00015226,2]
[420081997,1775659844728,-500.0,0.00015226,2]
[420081998,1775659844739,-150.0,0.00015226,2]
[420081999,1775659844750,-500.0,0.00015226,2]
[420082000,1775659844760,-500.0,0.00015226,2]
[420082001,1775659844772,-500.0,0.00015226,2]
[420082002,1775659844782,-272.94970253,0.00015226,2]
[420082003,1775659844793,-500.0,0.00015226,2]
[420082004,1775659844803,-500.0,0.00015226,2]
[420082005,1775659844814,-150.0,0.00015226,2]
[420082006,1775659844825,-373.1493795,0.00015226,2]
[420082007,1775659844837,-150.0,0.00015226,2]
[420082008,1775659844847,-150.0,0.00015226,2]
[420082009,1775659844857,-150.0,0.00015226,2]
[420082010,1775659844868,-245.51112262,0.00015226,2]
[420082011,1775659844878,-150.0,0.00015226,2]
[420082012,1775659844888,-150.0,0.00015226,2]
[420082013,1775659844898,-200.0,0.00015226,2]
[420082014,1775659844909,-150.0,0.00015226,2]
[420082015,1775659844919,-150.0,0.00015226,2]
[420082016,1775659844929,-150.0,0.00015226,2]
[420082017,1775659844940,-150.0,0.00015226,2]
[420082018,1775659844949,-261.74732129,0.00015226,2]
[420082019,1775659844959,-7524.36708684,0.00015254,2]
[420082020,1775659844969,-500.0,0.00015254,2]
[420082021,1775659844979,-151.0,0.00015254,2]
[420082022,1775659844989,-350.0,0.00015255,2]
[420082023,1775659844999,-500.0,0.00015309,2]
[420082024,1775659845009,-151.0,0.00015309,2]
[420082025,1775659845020,-6976.45084756,0.00015356,2]
[420082026,1775659845030,-500.0,0.00015364,2]
[420082027,1775659845040,-151.0,0.00015364,2]
[420082028,1775659845050,-1068.5,0.00015397,2]
[420082029,1775659845060,-2010.0,0.000154,2]
[420082030,1775659845071,-2210.82,0.000154,2]
[420082031,1775659845081,-500.0,0.00015419,2]
[420082032,1775659845093,-151.0,0.00015419,2]
[420082033,1775659845103,-500.0,0.00015474,2]
[420082034,1775659845114,-151.0,0.00015474,2]
[420082035,1775659845126,-500.0,0.00015529,2]
[420082036,1775659845137,-151.0,0.00015529,2]
[420082037,1775659845148,-350.0,0.00015537,2]
[420082038,1775659845158,-500.0,0.00015584,2]
[420082039,1775659845168,-151.0,0.00015584,2]
[420082040,1775659845178,-985.91,0.00015597,2]
[420082041,1775659845188,-1068.5,0.00015631,2]
[420082042,1775659845198,-500.0,0.00015639,2]
[420082043,1775659845207,-151.0,0.00015639,2]
[420082044,1775659845217,-189.528044,0.0001564,7]
[420082045,1775659845227,-1119.46129319,0.00015654,2]
[420082046,1775659845236,-1137.70131391,0.00015654,2]
[420082047,1775659845246,-1114.77871973,0.00015654,2]
[420082048,1775659845256,-1046.92412187,0.00015654,2]
[420082049,1775659845265,-1972.34414656,0.00015654,2]
[420082050,1775659845275,-394.248888,0.00015668,2]
[420082051,1775659845284,-500.0,0.00015694,2]
[420082052,1775659845294,-151.0,0.00015694,2]
[420082053,1775659845304,-152.1118183,0.000157,2]
[420082054,1775659845314,-1000.0,0.00015745,2]
[420082055,1775659845324,-187.78006525,0.00015747,2]
[420082056,1775659845334,-200.0,0.00015747,2]
[420082057,1775659845344,-1280.88388878,0.00015747,2]
[420082058,1775659845354,-771.01748645,0.00015747,2]
[420082059,1775659845363,-181.08010149,0.00015747,2]
[420082060,1775659845375,-500.0,0.00015749,2]
[420082061,1775659845385,-151.0,0.00015749,2]
[420082062,1775659845395,-1000.0,0.00015753,2]
[420082063,1775659845406,-155.0,0.00015755,3]
[420082064,1775659845416,-150.0,0.00015774,2]
[420082065,1775659845426,-1500.0,0.00015778,2]
[420082066,1775659845437,-1500.0,0.00015778,2]
[420082067,1775659845447,-150.0,0.00015779,2]
[420082068,1775659845458,-1000.0,0.00015784,2]
[420082069,1775659845468,-3000.0,0.000158,2]
[420082070,1775659845478,-500.0,0.00015804,2]
[420082071,1775659845488,-151.0,0.00015804,2]
[420082072,1775659845499,-150.0,0.00015805,2]
[420082073,1775659845509,-150.0,0.00015806,2]
[420082074,1775659845519,-258.785575,0.00015806,2]
[420082075,1775659845528,-97438.76421008,0.0001584,2]
[420082076,1775659845539,-2000.0,0.0001584,2]
[420082077,1775659845549,-2000.0,0.0001584,2]
[420082078,1775659845560,-2000.0,0.0001585,2]
[420082079,1775659845569,-500.0,0.00015859,2]
[420082080,1775659845580,-151.0,0.00015859,2]
[420082081,1775659845590,-163.8001,0.0001586,2]
[420082082,1775659845600,-1068.5,0.00015866,2]
[420082083,1775659845610,-163.8001,0.0001587,2]
[420082084,1775659845621,-985.91,0.00015871,2]
[420082085,1775659845632,-200.0,0.00015871,2]
[420082086,1775659845642,-500.0,0.00015872,2]
[420082087,1775659845652,-500.0,0.00015872,2]
[420082088,1775659845663,-200.0,0.00015872,2]
[420082089,1775659845673,-1000.0,0.00015879,2]
[420082090,1775659845683,-150.0,0.00015887,2]
[420082091,1775659845694,-500.0,0.0001589,2]
[420082092,1775659845704,-500.0,0.0001589,2]
[420082093,1775659845715,-500.0,0.0001589,2]
[420082094,1775659845725,-194.91667222,0.0001589,2]
[420082095,1775659845735,-2000.0,0.0001589,2]
[420082096,1775659845744,-25000.0,0.000159,3]
[420082097,1775659845754,-25000.0,0.000159,3]
[420082098,1775659845765,-898.0,0.000159,2]
[420082099,1775659845775,-25000.0,0.000159,3]
[420082100,1775659845786,-249.22320732,0.000159,2]
[420082101,1775659845796,-184.01842302,0.000159,2]
[420082102,1775659845806,-7084.17138578,0.000159,2]
[420082103,1775659845817,-9136.75136784,0.000159,2]
[420082104,1775659845828,-9577.4290793,0.000159,2]
[420082105,1775659845839,-1770.0,0.000159,5]
[420082106,1775659845849,-1412.0,0.000159,5]
[420082107,1775659845859,-2000.0,0.000159,2]
[420082108,1775659845869,-500.0,0.00015914,2]
[420082109,1775659845880,-151.0,0.00015914,2]
[420082110,1775659845890,-1000.0,0.00015918,2]
[420082111,1775659845901,-250.0,0.0001594,2]
[420082112,1775659845911,-570.79309048,0.00015948,2]
[420082113,1775659845921,-500.0,0.00015969,2]
[420082114,1775659845931,-151.0,0.00015969,2]
[420082115,1775659845941,-500.0,0.00015973,2]
[420082116,1775659845951,-500.0,0.00015973,2]
[420082117,1775659845961,-500.0,0.00015973,2]
[420082118,1775659845971,-501.73893264,0.00015973,2]
[420082119,1775659845981,-500.0,0.00015973,2]
[420082120,1775659845990,-500.0,0.00015973,2]
[420082121,1775659846000,-500.0,0.00015973,2]
[420082122,1775659846010,-500.0,0.00015973,2]
[420082123,1775659846021,-500.0,0.00015973,2]
[420082124,1775659846031,-150.0,0.00015975,2]
[420082125,1775659846041,-565.60270226,0.00015979,2]
[420082126,1775659846050,-150.0,0.00015981,2]
[420082127,1775659846060,-1000.0,0.00015982,2]
[420082128,1775659846071,-214.48,0.00015987,2]
[420082129,1775659846081,-264.0,0.0001599,2]
[420082130,1775659846090,-1000.0,0.0001599,2]
[420082131,1775659846101,-414.0,0.00015991,2]
[420082132,1775659846110,-552.13551218,0.00015995,2]
[420082133,1775659846121,-151.0,0.00015997,2]
[420082134,1775659846131,-2902.2219407,0.00015998,2]
[420082135,1775659846141,-3996.9402082,0.00015998,2]
[420082136,1775659846150,-20872.1899935,0.00015998,2]
[420082137,1775659846160,-666.0,0.00015999,2]
[420082138,1775659846171,-214.165588,0.00015999,2]
[420082139,1775659846181,-859646.94880587,0.00016,2]
[420082140,1775659846191,-260.0,0.00016,2]
[420082141,1775659846201,-1473.73853004,0.00016,2]
[420082142,1775659846211,-2000.0,0.00016,2]
[420082143,1775659846221,-300.0,0.00016,2]
[420082144,1775659846231,-151.0,0.00016,2]
[420082145,1775659846241,-1660285.7264851,0.00016,2]
[420082146,1775659846992,-2293.65062994,0.00016,2]
[420082147,1775659847004,-3726.14162389,0.00016,2]
[420082148,1775659847148,-16458.37816726,0.00016,2]
[420082149,1775659847160,-10560.53160195,0.00016,2]
[420082150,1775659847319,274.3433237,9.024e-05,2]
[420082151,1775659847362,500.0,9.024e-05,2]
[420082152,1775659847745,500.0,9.024e-05,2]
[420082153,1775659847794,500.0,9.024e-05,2]
[420082154,1775659848805,501.98012254,9.024e-05,2]
[420082155,1775659849349,213.17222364,9.024e-05,2]
[420082160,1775659851975,-151.0,0.00010873,2]
[420082161,1775659851985,-588.60805242,0.00011217,2]
[420082162,1775659851994,-4821.06680942,0.00016,2]
[420082163,1775659852007,-1595.749985,0.00016,2]
[420082164,1775659852019,-128621.39408567,0.00016,2]
[420082165,1775659852031,-445.09999989,0.00016,2]
[420082166,1775659895781,500.0,9.024e-05,2]
[420082167,1775659895835,500.0,9.024e-05,2]
[420082168,1775659895894,500.0,9.024e-05,2]
[420082169,1775659895957,501.98012254,9.024e-05,2]
[420082170,1775659921243,300.0,9.024e-05,2]
[420082171,1775659928045,351.0,9.024e-05,3]
[420082172,1775659929872,500.0,9.024e-05,2]
[420082173,1775659929912,500.0,9.024e-05,2]
[420082174,1775659929949,421.67816467,9.024e-05,2]
[420082175,1775659936997,151.0,9.022e-05,2]
[420082176,1775659937359,151.0,9.022e-05,2]
[420082177,1775659964261,500.0,9.024e-05,2]
[420082178,1775659981234,300.0,9.024e-05,2]
[420082179,1775659988356,334.0,9.024e-05,3]
[420082181,1775660041196,300.0,9.024e-05,2]
[420082182,1775660042106,150.0,9.024e-05,2]
[420082183,1775660045644,299.22055655,9.024e-05,2]
[420082184,1775660050725,317.0,9.024e-05,3]
[420082185,1775660051864,300.0,9.024e-05,2]
[420082186,1775660058608,275.57764162,9.024e-05,2]
[420082187,1775660101524,1200.0,9.024e-05,2]
[420082188,1775660161563,300.0,9.024e-05,2]
[420082189,1775660168800,301.0,9.024e-05,3]
[420082190,1775660221864,150.0,9.024e-05,2]
[420082191,1775660222523,300.0,9.024e-05,2]
[420082192,1775660228170,286.0,9.024e-05,3]
[420082193,1775660244662,2039.0,0.0001,10]
[420082194,1775660253606,1899.55351462,8.925e-05,2]
[420082195,1775660253631,600.44648538,8.925e-05,2]
[420082196,1775660263603,150.0,0.00012937,120]
[420082198,1775660289205,272.0,9.024e-05,3]
[420082201,1775660341500,300.0,9.024e-05,2]
[420082202,1775660347356,258.0,9.024e-05,3]
[420082203,1775660401546,188.0,9.024e-05,2]
[420082204,1775660401581,1200.0,9.024e-05,2]
[420082205,1775660401848,150.0,9.024e-05,2]
[420082206,1775660412542,2500.0,8.925e-05,2]
[420082207,1775660412866,155.0,9.024e-05,3]
[420082208,1775660414232,500.0,9.003e-05,2]
[420082212,1775660465110,245.0,9.024e-05,3]
[420082213,1775660469256,500.0,9.003e-05,2]
[420082214,1775660488610,3119.88,8.844e-05,2]
[420082215,1775660488687,190.145,8.844e-05,2]
[420082216,1775660527619,233.0,9.024e-05,3]
[420082217,1775660569207,657.0206,8.925e-05,2]
[420082218,1775660581899,94.51791462,9.024e-05,2]
[420082219,1775660581925,55.48208538,9.024e-05,2]
[420082220,1775660587602,221.0,9.024e-05,3]
[420082221,1775660589460,8434.843171,7.945e-05,2]
[420082222,1775660646720,210.0,9.024e-05,3]
[420082223,1775660701167,1200.0,9.024e-05,2]
[420082224,1775660707936,200.0,9.024e-05,3]
[420082225,1775660711879,155.0,9.024e-05,3]
[420082226,1775660761689,150.0,9.024e-05,2]
[420082227,1775660767165,190.0,9.024e-05,3]
[420082228,1775660786944,159.68474362,8.951e-05,2]
[420082229,1775660786968,79.20525638,8.951e-05,2]
[420082230,1775660787598,477.78,8.954e-05,2]
[420082231,1775660788306,238.89,8.957e-05,2]
[420082232,1775660862913,9204.13474362,8.925e-05,2]
[420082233,1775660862941,10000.01,8.925e-05,2]
[420082234,1775660862969,10000.01,8.925e-05,2]
[420082235,1775660862995,10000.01,8.925e-05,2]
[420082236,1775660863023,10000.01,8.925e-05,2]
[420082237,1775660863052,10000.01,8.925e-05,2]
[420082238,1775660863081,10000.01,8.925e-05,2]
[420082239,1775660863111,5000.01,8.925e-05,2]
[420082240,1775660863140,5000.01,8.925e-05,2]
[420082241,1775660863168,10000.01,8.925e-05,2]
[420082242,1775660863197,10000.01,8.925e-05,2]
[420082243,1775660863227,10000.01,8.925e-05,2]
[420082244,1775660889521,180.0,8.925e-05,3]
[420082245,1775660911597,192.04032659,8.924e-05,2]
[420082246,1775660911741,209.45438958,8.924e-05,2]
[420082247,1775660913031,444.88447168,8.924e-05,2]
[420082248,1775660942784,150.0,8.924e-05,2]
[420082249,1775660948703,171.0,8.924e-05,3]
[420082250,1775660954425,-5563.6637832,8.925e-05,2]
[420082251,1775660960926,1084.35002387,8.924e-05,3]
[420082252,1775660960974,1084.35002386,9.024e-05,3]
[420082253,1775660961030,204.552712,8.924e-05,3]
[420082255,1775661001217,1200.0,8.924e-05,2]
[420082256,1775661012144,155.0,8.924e-05,3]
[420082257,1775661012376,172.0,8.924e-05,3]
[420082258,1775661034735,-250.0,8.925e-05,2]
[420082269,1775661038762,-5319.16595998,8.925e-05,2]
[420082270,1775661038775,-1586.46233577,8.925e-05,2]
[420082271,1775661038786,-3521.47120761,8.925e-05,2]
[420082272,1775661038798,-35400.0,8.925e-05,2]
[420082273,1775661038810,-394637.54748333,8.925e-05,2]
[420082274,1775661038822,-263.3948941,8.925e-05,2]
[420082305,1775661041286,-403.46388559,8.925e-05,2]
[420082306,1775661041299,-670598.7876068,8.925e-05,2]
[420082307,1775661041309,-1500000.0,8.925e-05,2]
[420082308,1775661041318,-155515.42987351,8.925e-05,2]
[420082309,1775661041328,-500.0,9.003e-05,2]
[420082310,1775661041338,-500.0,9.003e-05,2]
[420082311,1775661041349,-500.0,9.003e-05,2]
[420082312,1775661041359,-500.0,9.003e-05,2]
[420082313,1775661041369,-500.0,9.003e-05,2]
[420082314,1775661041379,-500.0,9.003e-05,2]
[420082315,1775661041389,-33041.7805,9.025e-05,2]
[420082316,1775661041398,-250.0,9.025e-05,2]
[420082317,1775661041408,-1193.07318894,9.025e-05,2]
[420082318,1775661041418,-250.0,9.28e-05,2]
[420082319,1775661041428,-1000.0,9.551e-05,2]
[420082320,1775661041438,-1000.0,9.551e-05,2]
[420082321,1775661041447,-1000.0,9.551e-05,2]
[420082322,1775661041458,-1000.0,9.551e-05,2]
[420082323,1775661041468,-500.0,9.551e-05,2]
[420082324,1775661041477,-255.0,9.816e-05,2]
[420082325,1775661041488,-1680.0,9.816e-05,2]
[420082326,1775661041498,-193.0,9.817e-05,2]
[420082327,1775661041508,-150.0,9.9e-05,2]
[420082328,1775661041517,-250.0,9.927e-05,2]
[420082329,1775661041528,-201.0,9.989e-05,2]
[420082330,1775661041537,-201.0,9.989e-05,2]
[420082331,1775661041547,-201.0,9.989e-05,2]
[420082332,1775661041557,-201.0,9.989e-05,2]
[420082333,1775661041567,-500.0,0.0001,2]
[420082334,1775661041576,-416.28806006,0.0001,2]
[420082335,1775661041587,-151.0,0.0001,2]
[420082336,1775661041597,-151.0,0.0001,2]
[420082337,1775661041606,-151.0,0.0001,2]
[420082338,1775661041616,-151.0,0.0001,2]
[420082339,1775661041626,-151.0,0.0001,2]
[420082340,1775661041636,-200.0,0.0001,2]
[420082341,1775661041645,-151.0,0.0001,2]
[420082342,1775661041655,-500.0,0.0001,2]
[420082343,1775661041664,-500.0,0.0001,2]
[420082344,1775661041674,-500.0,0.0001,2]
[420082345,1775661041685,-151.0,0.0001,2]
[420082346,1775661041694,-500.0,0.0001,2]
[420082347,1775661041704,-151.0,0.0001,2]
[420082348,1775661041714,-500.0,0.0001,2]
[420082349,1775661041723,-151.0,0.0001,2]
[420082350,1775661041733,-151.0,0.0001,2]
[420082351,1775661041743,-151.0,0.0001,2]
[420082352,1775661041753,-151.0,0.0001,2]
[420082353,1775661041762,-151.0,0.0001,2]
[420082354,1775661041772,-151.0,0.0001,2]
[420082355,1775661041781,-151.0,0.0001,2]
[420082356,1775661041791,-151.0,0.0001,2]
[420082357,1775661041801,-151.0,0.0001,2]
[420082358,1775661041811,-151.0,0.0001,2]
[420082359,1775661041821,-151.0,0.0001,2]
[420082360,1775661041831,-151.0,0.0001,2]
[420082361,1775661041842,-151.0,0.0001,2]
[420082362,1775661041853,-500.0,0.0001,2]
[420082363,1775661041863,-151.0,0.0001,2]
[420082364,1775661041873,-500.0,0.0001,2]
[420082365,1775661041884,-151.0,0.0001,2]
[420082366,1775661041894,-500.0,0.0001,2]
[420082367,1775661041903,-166.73180751,0.0001,2]
[420082368,1775661041913,-500.0,0.0001,2]
[420082369,1775661041924,-151.0,0.0001,2]
[420082370,1775661041934,-500.0,0.0001,2]
[420082371,1775661041945,-151.0,0.0001,2]
[420082372,1775661041955,-500.0,0.0001,2]
[420082373,1775661041965,-151.0,0.0001,2]
[420082374,1775661041976,-500.0,0.0001,2]
[420082375,1775661041985,-500.0,0.0001,2]
[420082376,1775661041995,-500.0,0.0001,2]
[420082377,1775661042006,-151.0,0.0001,2]
[420082379,1775661042016,-500.0,0.0001,2]
[420082380,1775661042026,-151.0,0.0001,2]
[420082381,1775661042035,-151.0,0.0001,2]
[420082382,1775661042045,-151.0,0.0001,2]
[420082383,1775661042056,-151.0,0.0001,2]
[420082385,1775661042066,-151.0,0.0001,2]
[420082386,1775661042075,-151.0,0.0001,2]
[420082387,1775661042084,-151.0,0.0001,2]
[420082388,1775661042093,-151.0,0.0001,2]
[420082389,1775661042104,-151.0,0.0001,2]
[420082390,1775661042114,-193.84027236,0.0001,2]
[420082391,1775661042124,-489.18139785,0.0001,2]
[420082392,1775661042134,-17815.67883391,0.0001,2]
[420082393,1775661042144,-348.68212697,0.0001,2]
[420082394,1775661042154,-182.87970371,0.0001,2]
[420082395,1775661042165,-500.0,0.00010098,2]
[420082396,1775661042174,-501.20287893,0.00010098,2]
[420082397,1775661042184,-1000.0,0.00010098,2]
[420082398,1775661042194,-1500.0,0.00010098,2]
[420082399,1775661042204,-261.69532138,0.000101,2]
[420082400,1775661042214,-2361.39046194,0.00010174,2]
[420082401,1775661042224,-1840.0,0.000102,3]
[420082402,1775661042233,-1198.0,0.00010272,2]
[420082403,1775661042243,-500.0,0.00010274,2]
[420082404,1775661042253,-5533.0,0.000105,5]
[420082405,1775661042262,-999.99,0.00010548,2]
[420082406,1775661042272,-150.99,0.00010548,2]
[420082407,1775661042283,-2336.63,0.00010548,2]
[420082408,1775661042292,-9999.99,0.00010548,2]
[420082409,1775661042302,-9999.99,0.00010548,2]
[420082410,1775661042312,-150.99,0.00010548,2]
[420082411,1775661042322,-299.99,0.00010548,2]
[420082412,1775661042333,-2000.0,0.00010646,2]
[420082413,1775661042343,-363238.80976319,0.000107,2]
[420082416,1775661042487,-3751.94947151,0.000107,2]
[420082421,1775661044686,-389.4790605,0.000107,2]
[420082422,1775661044698,-1566.50162416,0.000107,2]
[420082423,1775661044710,-9301.44844738,0.000107,2]
[420082431,1775661048570,-5934.13425531,0.000107,2]
[420082432,1775661048585,-400.00129797,0.000107,2]
[420082433,1775661048597,-4454.14191892,0.000107,2]
[420082434,1775661048610,-3980.70125198,0.000107,2]
[420082435,1775661048622,-45655.3595253,0.000107,2]
[420082459,1775661049469,-204380.90546112,0.000107,2]
[420082461,1775661049481,-273.725,0.000107,2]
[420082463,1775661049492,-7104.29901588,0.000107,2]
[420082465,1775661049504,-1588.36849833,0.000107,2]
[420082467,1775661049516,-1136.82271602,0.000107,2]
[420082474,1775661049970,-6477.02625352,0.000107,2]
[420082475,1775661049982,-2450.95440644,0.000107,2]
[420082476,1775661049995,-2463.20541811,0.000107,2]
[420082477,1775661068727,5000.01,8.825e-05,2]
[420082478,1775661068753,5000.01,8.825e-05,2]
[420082479,1775661068778,5000.01,8.825e-05,2]
[420082480,1775661068803,5000.01,8.825e-05,2]
[420082481,1775661081645,-1308.05159,8.825e-05,2]
[420082482,1775661081710,-5000.01,8.825e-05,2]
[420082483,1775661084169,-5000.01,8.825e-05,2]
[420082484,1775661084299,-5000.01,8.825e-05,2]
[420082485,1775661084386,-5000.01,8.825e-05,2]
[420082486,1775661087353,-489.54431,8.825e-05,2]
[420082487,1775661116757,10000.01,8.825e-05,2]
[420082488,1775661116786,10000.01,8.825e-05,2]
[420082489,1775661116814,10000.01,8.825e-05,2]
[420082490,1775661116843,10000.01,8.825e-05,2]
[420082491,1775661116872,10000.01,8.825e-05,2]
[420082492,1775661116899,4020.92138,8.825e-05,2]
[420082493,1775661116926,5000.01,8.825e-05,2]
[420082494,1775661116956,5000.01,8.825e-05,2]
[420082495,1775661116983,5000.01,8.825e-05,2]
[420082496,1775661121946,-150.0,8.824e-05,2]
[420082497,1775661124190,-979.08862,8.825e-05,2]
[420082498,1775661124217,-5000.01,8.825e-05,2]
[420082499,1775661124232,-5000.01,8.825e-05,2]
[420082500,1775661125667,-5000.01,8.825e-05,2]
[420082501,1775661125835,-5000.01,8.825e-05,2]
[420082502,1775661125891,-5000.01,8.825e-05,2]
[420082503,1775661126691,164.0,8.825e-05,3]
[420082504,1775661131873,-5000.01,8.825e-05,2]
[420082505,1775661137922,-5000.01,8.825e-05,2]
[420082506,1775661187907,155.0,8.825e-05,3]
[420082507,1775661242498,1200.0,8.824e-05,2]
[420082508,1775661251237,155.0,8.825e-05,3]
[420082509,1775661286179,1208.02236203,9.833e-05,4]
[420082510,1775661301439,1200.0,8.824e-05,2]
[420082511,1775661301631,150.0,8.824e-05,2]
[420082512,1775661306997,155.0,9.833e-05,3]
[420082513,1775661361219,300.0,8.824e-05,2]
[420082514,1775661368621,151.0,8.822e-05,2]
[420082515,1775661370297,155.0,9.833e-05,3]
[420082516,1775661421788,300.0,8.824e-05,2]
[420082517,1775661427875,155.0,9.833e-05,3]
[420082518,1775661481144,300.0,8.824e-05,2]
[420082519,1775661481582,1272.38742046,8.824e-05,3]
[420082520,1775661481703,500.0,9.591e-05,3]
[420082521,1775661481991,150.0,8.824e-05,2]
[420082522,1775661492333,156.0,9.833e-05,3]
[420082523,1775661526011,500.0,8.824e-05,2]
[420082524,1775661526054,483.36103957,8.824e-05,2]
[420082525,1775661526087,162.37752979,8.824e-05,2]
[420082526,1775661526119,181.00944613,8.824e-05,2]
[420082527,1775661526160,500.0,8.824e-05,2]
[420082528,1775661526326,3893.3091,8.725e-05,2]